Workbook

Sheet Directory
A4: Property Name and Address | D4: City | E4: State | F4: # of Units
A6: "Kings Manor" 125 20th Ave SW | D6: Cedar Rapids | E6: Iowa | F6: 12

Sheet 125 20th Ave SW CR
B3: Profit & Loss 12 Month Recap
B4: Property: Kings Manor
B5: Monthly recap 08/01/24 - 07/31/25 (cash basis)
E7: 2025-08-24 | F7: 2024-09-24 | G7: 2024-10-24 | H7: 2024-11-24 | I7: 2024-12-24 | J7: 2025-01-25 | K7: 2025-02-25 | L7: 2025-03-25 | M7: 2025-04-25 | N7: 2025-05-25 | O7: 2025-06-25 | P7: 2025-07-25 | Q7: TOTAL
A8: INCOME
B9: 4100 Rental Income | E9: 7425 | F9: =675*12 -> 8100 | G9: 7760 | H9: 8050 | I9: 8100 | J9: 7410 | K9: 7250 | L9: 6860 | M9: 7580 | N9: 7540 | O9: 8150 | P9: 7405 | Q9: =SUM(E9:P9) -> 91630
B10: 4900 Other Property Income | E10: 0 | F10: 0 | G10: 89 | H10: 178 | I10: 0 | J10: 35 | K10: 182 | L10: 0 | M10: 0 | N10: 0 | O10: 201 | P10: 20 | Q10: =SUM(E10:P10) -> 705
A11: TOTAL | C11: INCOME | E11: =SUM(E9:E10) -> 7425 | F11: =SUM(F9:F10) -> 8100 | G11: 7849 | H11: 8228 | I11: 8100 | J11: 7445 | K11: 7432 | L11: 6860 | M11: 7580 | N11: 7540 | O11: 8351 | P11: 7425 | Q11: =SUM(Q9:Q10) -> 92335
A12: EXPENSE
B13: 5000 Admin & General Expenses | E13: 33 | F13: 172 | G13: 197 | H13: 147 | I13: 133 | J13: 104 | K13: 113 | L13: 69 | M13: 138 | N13: 43 | O13: 139 | P13: 98 | Q13: =SUM(E13:P13) -> 1386
B14: 5100 Insurance | E14: 573 | F14: 540 | G14: 593 | H14: 593 | I14: 593 | J14: 593 | K14: 593 | M14: 1186 | N14: 593 | O14: 593 | P14: 593 | Q14: =SUM(E14:P14) -> 7043
B15: 5300 Grounds Expense | E15: 280 | F15: 265 | G15: 290 | H15: 257 | I15: 318 | J15: 109 | K15: 1240 | L15: 1910 | M15: 75 | N15: 240 | O15: 266 | P15: 139 | Q15: =SUM(E15:P15) -> 5389
B16: 5330 Cleaning Expenses | E16: 155 | F16: 141 | G16: 141 | H16: 117 | I16: 103 | J16: 187 | K16: 117 | L16: 117 | M16: 163 | N16: 207 | O16: 117 | P16: 141 | Q16: =SUM(E16:P16) -> 1706
B17: 5420 Inspection Expense | E17: 0 | F17: 0 | G17: 0 | H17: 0 | I17: 0 | J17: 0 | K17: 0 | L17: 0 | M17: 0 | N17: 0 | O17: 0 | P17: 0 | Q17: 0
B18: 5600 Managing Expenses | E18: 483 | F18: 527 | G18: 510 | H18: 535 | I18: 527 | J18: 484 | K18: 483 | L18: 446 | M18: 493 | N18: 490 | O18: 543 | P18: 483 | Q18: =SUM(E18:P18) -> 6004
B19: 5850 Repairs & Maintenance Expense | E19: 840 | F19: 379 | G19: 296 | H19: 869 | I19: 962 | J19: 732 | K19: 949 | L19: 237 | M19: 766 | N19: 87 | O19: 909 | P19: 607 | Q19: =SUM(E19:P19) -> 7633
B20: 6000 Utilities Expense | E20: 583 | F20: 309 | G20: 658 | H20: 547 | I20: 783 | J20: 911 | K20: 1140 | L20: 1618 | M20: 731 | N20: 928 | O20: 141 | P20: 471 | Q20: =SUM(E20:P20) -> 8820
B21: 6100 Travel & Entertainment Expense | E21: 0 | F21: 4 | G21: 0 | H21: 0 | I21: 0 | J21: 0 | K21: 0 | L21: 0 | M21: 0 | N21: 0 | O21: 6 | P21: 0 | Q21: 10
B22: Property Taxes | F22: 4039 | G22: 0 | H22: 0 | I22: 0 | J22: 0 | K22: 0 | L22: 4180 | M22: 0 | N22: 0 | O22: 0 | P22: 0 | Q22: 8219
A23: TOTAL | C23: EXPENSE | E23: =SUM(E13:E22) -> 2947 | F23: =SUM(F13:F22) -> 6376 | G23: =SUM(G13:G22) -> 2685 | H23: 3065 | I23: 3419 | J23: 3120 | K23: 4635 | L23: 8577 | M23: 3552 | N23: 2588 | O23: 2714 | P23: 2532 | Q23: =SUM(Q13:Q22) -> 46210 | R23: =Q23/Q11 -> 0.5004602805
A24: OTHER INCOME | I24: 1
B25: 4500 Interest & Other Income | E25: 1 | F25: 1 | G25: 1 | H25: 1 | J25: 1 | K25: 1 | L25: 1 | M25: 1 | N25: 1 | O25: 1 | P25: 1 | Q25: 12
A26: TOTAL | C26: OTHER INCOME | E26: 1 | F26: 1 | G26: 1 | H26: 1 | I26: 1 | J26: 1 | K26: 1 | L26: 1 | M26: 1 | N26: 1 | O26: 1 | P26: 1 | Q26: 12
A27: NET INCOME | E27: =E11-E23+E26 -> 4479 | F27: =F11-F23+F26 -> 1725 | G27: 5165 | H27: 5164 | I27: 4682 | J27: 4326 | K27: 2798 | L27: -1716 | M27: 4029 | N27: 4953 | O27: 5638 | P27: 4894 | Q27: 46137
